{"text_format":"1","workbook":"xlsx","n_sheets":12,"sheets":["Калькулятор","список ТСО","С1_СТС","Воздушные линии","Кабельные линии","Пункты секционирования","Трансформаторные подстанции","РТП","Источники питания","С1_1кВт","ставки за 1кВт","Расчет2"],"not_rendered":{"charts":0,"images":14,"macros":1,"external_links":1,"defined_names":6,"comments":0,"pivot_tables":0},"unopened":[],"bounds":{"document_bytes":16777216,"sheet_cells":100000,"rows_first":2000,"rows_last":500,"rows_between":2000,"halvings":0,"cell_chars":16384,"cell_head_chars":4096},"cells_cut":0,"cells_raw":0,"read":"whole","date_system":"1900"}

{"sheet":"Калькулятор","index":0,"n_rows":29,"n_cols":2,"rows_kept":29,"cut":false,"hidden":false,"merged":[[1,1,1,2],[28,1,28,2]]}
[]
[null,"Расчет платы за технологическое присоединение к электрическим сетям"]
[]
[]
[null,"Наименование территориальной сетевой организации:"]
[]
[null,"Уровень напряжения энергопринимающих устройств, кВ"]
[null,"Максимальная мощность, кВт"]
[null,"Территория, на которой осуществляется технологическое присоединение к электрическим сетям"]
[null,"Наличие мероприятий по строительству «последней мили» со стороны сетевой организации"]
[null,"Техническое решение для расчета платы с учетом стандартизированных тарифных ставок:"]
[null,"Строительство воздушных линий"]
[null,"Строительство кабельных линий"]
[null,"Строительство трансформаторных подстанций"]
[null,"Строительство пунктов секционирования"]
[null,"Строительство подстанций уровнем напряжения 35кВ и выше (ПС)"]
[null,"Строительство распределительных трансформаторных подстанций "]
[null,"Техническое решение для расчета платы с учетом ставок за единицу максимальной мощности:"]
[null,"Воздушные линии электропередачи"]
[null,"Кабельные линии электропередачи"]
[null,"Трансформаторные подстанции"]
[null,"Распределительные трансформаторные подстанции "]
[null,"Подстанции уровнем напряжения 35кВ и выше (ПС)"]
[null,"Пункты секционирования"]
[]
[]
[]
[]
[null,"Внимание! Данные расчеты носят справочный характер и не могут являться окончательными для оплаты стоимости технологического присоединения. \nКалькулятор расчета платы за технологическое присоединение к электрическим сетям предназначен для примерного расчета стоимости размера платы за технологическое присоединение к электрическим сетям территориальных сетевых организаций Челябинской области."]

{"sheet":"список ТСО","index":1,"n_rows":57,"n_cols":2,"rows_kept":57,"cut":false,"hidden":true,"merged":[]}
["№ п/п","Полное (сокращенное) наименование территориальной сетевой организации (ТСО)"]
[1,"Филиал открытого акционерного общества «Межрегиональная распределительная сетевая компания Урала»-«Челябэнерго» (Филиал ОАО «МРСК Урала»-«Челябэнерго»)"]
[2,"Общество с ограниченной ответственностью «АЭС Инвест» \n(ООО «АЭС Инвест»)"]
[3,"Акционерное общество «Автомобильный завод «Урал» \n(АО «Автомобильный завод «Урал», АО \"АЗ \"Урал\")"]
[4,"Акционерное общество «Оборонэнерго» Филиал «Уральский» \n(АО «Оборонэнерго» Филиал «Уральский»)"]
[5,"Акционерное общество «Трансэнерго» \n(АО «Трансэнерго»)"]
[6,"Акционерное общество «Челябинское авиапредприятие» \n(АО «ЧАП»)"]
[7,"Акционерное общество «Челябинский электрометаллургический комбинат» \n(АО «ЧЭМК»)"]
[8,"Акционерное общество «Электросеть» \n(АО «Электросеть»)"]
[9,"Акционерное общество «Энергосетевая Компания ЧТПЗ» \n(АО «ЭСК ЧТПЗ» )"]
[10,"Муниципальное многоотраслевое предприятие коммунального хозяйства (ММПКХ)"]
[11,"Муниципальное предприятие  «Горэлектросеть» г. Магнитогорска \n(МП  «Горэлектросеть» г. Магнитогорска)"]
[12,"Муниципальное унитарное предприятие «Городская управляющая компания» \n(МУП «ГУК»)"]
[13,"Муниципальное унитарное предприятие «Копейские электрические сети» \n(МУП «КЭС»)"]
[14,"Муниципальное унитарное предприятие «Многоотраслевое производственное объединение энергосетей» города Трехгорного \n(МУП «МПОЭ» г. Трехгорного)"]
[15,"Муниципальное унитарное предприятие «Производственное объединение водоснабжения и водоотведения» г. Челябинска \n(МУП «ПОВВ»)"]
[16,"Муниципальное унитарное предприятие «Электротепловые сети» \n(МУП «ЭТС»)"]
[17,"Непубличное акционерное общество \"Вишневогорский горно-обогатительный комбинат\" (АО \"Вишневогорский ГОК\")"]
[18,"Открытое акционерное общество «Магнитогорский метизно-калибровочный завод «ММК-Метиз» \n(ОАО «ММК-Метиз»)"]
[19,"Открытое акционерное общество «Российские железные дороги» (Южно-Уральская дирекция по энергообеспечению – структурное подразделение Трансэнерго – филиала открытого акционерного общества «Российские железные дороги») \n(ОАО \"РЖД\" (Южно-Уральская дирекция по энергообеспечению – структурное подразделение Трансэнерго – филиала ОАО \"РЖД\")"]
[20,"Открытое акционерное общество «Челябинская электросетевая компания» \n(ОАО «ЧЭК»)"]
[21,"Открытое акционерное общество «Энергопром-Челябинский электродный завод» \n(ОАО «ЭПМ-ЧЭЗ», ОАО «ЭНЕРГОПРОМ-ЧЭЗ»)"]
[22,"Общество с ограниченной ответственностью \"АТЭК74\" \n(ООО \"АТЭК74\")"]
[23,"Общество с ограниченной ответственностью «Златэнерготелеком» \n(ООО «Златэнерготелеком»)"]
[24,"Общество с ограниченной ответственностью «Интернешенел Билдинг Констракшен» \n(ООО «ИБК»)"]
[25,"Общество с ограниченной ответственностью «Каслинская ЭнергоСбытовая Компания» \n(ООО «Каслинская ЭнергоСбытовая Компания»)"]
[26,"Общество с ограниченной ответственностью Завод стройиндустрии «КЕММА» \n(ООО «КЕММА»)"]
[27,"Общество с ограниченной ответственностью \"Магнитогорская Сетевая Компания\"\n(ООО \"МСК\")"]
[28,"Общество с ограниченной ответственностью «Металлстрой» \n(ООО «Металлстрой»)"]
[29,"Общество с ограниченной ответственностью «Механический завод» \n(ООО «Механический завод»)"]
[30,"Общество с ограниченной ответственностью «Объединенная электросетевая компания - Челябинск» \n(ООО «ОЭсК - Челябинск»)"]
[31,"Общество с ограниченной ответственностью «ПРОДВИЖЕНИЕ» \n(ООО «ПРОДВИЖЕНИЕ»)"]
[32,"Общество с ограниченной ответственностью «Региональная сетевая компания» \n(ООО «РСК»)"]
[33,"Общество с ограниченной ответственностью Сетевая компания «ЭнергоРесурс» \n(ООО СК «ЭнР»)"]
[34,"Общество с ограниченной ответственностью «Сети и системы» \n(ООО «Сети и системы»)"]
[35,"Общество с ограниченной ответственностью «Системы Передачи Электроэнергии» \n(Общество с ограниченной ответственностью «СПЭ»)"]
[36,"Общество с ограниченной ответственностью «ТДК» \n(ООО «ТДК»)"]
[37,"Общество с ограниченной ответственностью «ТЕХНОСЕРВИС-ПЭ» \n(ООО «ТЕХНОСЕРВИС-ПЭ»)"]
[38,"Общество с ограниченной ответственностью «Тепловые электрические сети и системы» \n(ООО «ТЭСиС»)"]
[39,"Общество с ограниченной ответственностью \"Трансэнерго\" \n(ООО \"Трансэнерго\")"]
[40,"Общество с ограниченной ответственностью «Управление энергоснабжения и связи» \n(ООО «УЭС»)"]
[41,"Общество с ограниченной ответственностью \"Уральская энергетическая сетевая компания\" (ООО \"УЭСК\")"]
[42,"Общество с ограниченной ответственностью «ЭДС» \n(ООО «ЭДС»)"]
[43,"Общество с ограниченной ответственностью «Электро ТК» \n(ООО «Электро ТК»)"]
[44,"Общество с ограниченной ответственностью «Электросетевая компания» \n(ООО «ЭСК») г. Екатеринбург"]
[45,"Общество с ограниченной ответственностью «Электросетевая компания» \n(ООО «Электросетевая компания») г. Сатка"]
[46,"Общество с ограниченной ответственностью «ЭНЕРГЕТИЧЕСКАЯ КОМПАНИЯ АЛЬТАИР» \n(ООО «ЭНЕРГЕТИЧЕСКАЯ КОМПАНИЯ АЛЬТАИР»)"]
[47,"Общество с ограниченной ответственностью «Энергоснабжающая сетевая компания» \n(ООО «ЭСК»)"]
[48,"Общество с ограниченной ответственностью «Энерготехсервис» \n(ООО «ЭТС»)"]
[49,"Общество с ограниченной ответственностью «Эффект ТК» \n(ООО «Эффект ТК»)"]
[50,"Общество с ограниченной ответственностью «Южноуральская сетевая компания» \n(ООО «ЮСК»)"]
[51,"Публичное акционерное общество «Магнитогорский металлургический комбинат» (ПАО «ММК»)"]
[52,"Публичное акционерное общество «Челябинский машиностроительный завод автомобильных прицепов «Уралавтоприцеп» \n(ПАО «Уралавтоприцеп»)"]
[53,"Публичное акционерное общество «Челябинский завод профилированного стального настила» \n(ПАО «ЧЗПСН-ПРОФНАСТИЛ»)"]
[54,"Федеральное государственное унитарное предприятие  «Приборостроительный завод» \n(ФГУП «ПСЗ», ФГУП «Приборостроительный завод»)"]
[55,"Федеральное государственное унитарное предприятие  «Производственное объединение «Маяк» \n(ФГУП «ПО «Маяк»)"]
[56,"Федеральное государственное унитарное предприятие  «УСТЬ-КАТАВСКИЙ ВАГОНОСТРОИТЕЛЬНЫЙ ЗАВОД имени С.М. Кирова» – филиал АО «ГОСУДАРСТВЕННЫЙ КОСМИЧЕСКИЙ НАУЧНО-ПРОИЗВОДСТВЕННЫЙ ЦЕНТР имени М.В. Хруничева» "]

{"sheet":"С1_СТС","index":2,"n_rows":8,"n_cols":5,"rows_kept":8,"cut":false,"hidden":true,"merged":[[2,1,2,2],[5,1,5,2],[0,0,0,4]]}
["Стандартизированная тарифная ставка на покрытие расходов сетевой организации за технологическое присоединение энергопринимающих устройств потребителей электрической энергии, объектов электросетевого хозяйства, принадлежащих сетевым организациям и иным лицам (С1) по мероприятиям, указанным в пункте 16 Методических указаний (кроме подпункта «б») \n(на территориях городских населенных пунктов и на территориях, \nне относящихся к территориям городских населенных пунктов)"]
[]
["№ п.п.","Наименование стандартизированной тарифной ставки",null,"Единица измерения","Значение (без учета НДС)"]
[1,2,3,4,5]
[1,"С1","Стандартизированная тарифная ставка на покрытие расходов сетевой организации за технологическое присоединение энергопринимающих устройств потребителей электрической энергии, объектов электросетевого хозяйства, принадлежащих сетевым организациям и иным лицам, по мероприятиям, указанным в пункте 16 Методических указаний (кроме подпункта «б»),","руб. за одно присоединение",11644.28]
[null,"в том числе:"]
["1.1.","С1.1","Подготовка и выдача сетевой организацией технических условий Заявителю","руб. за одно присоединение ",5493.16]
["1.2.","С1.2","Проверка сетевой организацией выполнения Заявителем технических условий (включая процедуры, предусмотренные подпунктами «г» - «е» пункта 7 Правил технологического присоединения)","руб. за одно присоединение ",6151.12]

{"sheet":"Воздушные линии","index":3,"n_rows":59,"n_cols":12,"rows_kept":59,"cut":false,"hidden":true,"merged":[[36,1,36,7],[30,1,30,7],[27,1,27,7],[42,1,42,7],[39,1,39,7],[0,0,0,7],[4,1,4,7],[5,1,5,7],[14,1,14,7],[24,1,24,7],[6,1,6,7],[7,1,7,7],[8,1,8,7],[11,1,11,7],[15,1,15,7],[16,1,16,7],[19,1,19,7],[20,1,20,7],[22,1,22,7],[25,1,25,7],[26,1,26,7],[31,1,31,7],[32,1,32,7],[33,1,33,7],[43,1,43,7],[44,1,44,7],[50,1,50,7],[54,1,54,7],[57,1,57,7],[47,1,47,7],[53,1,53,7]]}
["Стандартизированная тарифная ставка на покрытие расходов сетевой организации на строительство воздушных линий электропередачи"]
[]
[null,"Наименование стандартизированной тарифной ставки","Размер ставки в отношении заявителей, осуществляющих технологическое присоединение энергопринимающих устройств \nсвыше 150 кВт \n(на территориях городских населенных пунктов), руб./км","Длина линии, км","Размер ставки в отношении заявителей, осуществляющих технологическое присоединение энергопринимающих устройств \nсвыше 150 кВт\n (на территориях, не относящихся к территориям городских населенных пунктов), руб./км","Длина линии, км","Размер ставки в отношении заявителей, осуществляющих технологическое присоединение энергопринимающих устройств \nне более 150 кВт, руб./км","Длина линии, км"]
["№ п/п",1,2,3,4,5,6,7]
[1,"С2  - Стандартизированная тарифная ставка на покрытие расходов сетевой организации на строительство воздушных линий электропередачи"]
["1.1.","Материал опоры - деревянные",null,null,null,null,null,null,null,null,null,{"$f":"IF(Калькулятор!C9='ставки за 1кВт'!D4,D10,0)","v":0}]
["1.1.1.","Тип провода - изолированный"]
["1.1.1.4.","Материал провода - алюминиевый"]
["1.1.1.4.1","Сечение провода - до 50 мм2 включительно"]
[null,"до 1 кВ",858160,null,902490,null,0,null,null,null,1,{"$f":"C10*D10+C11*D11+C13*D13+C14*D14+C18*D18+C19*D19+D22+C24*D24+C29*D29+C30*D30+C35*D35+C36*D36+C38*D38+C39*D39+C41*D41+C42*D42+C46*D46+C47*D47+C49*D49+C50*D50+C52*D52+C53*D53+C56*D56+C57*D57+C59*D59","v":0}]
[null,"6-10 кВ",4499320,null,1462440,null,0,null,null,null,2,{"$f":"F10*E10+F11*E11+F13*E13+F14*E14+F18*E18+F19*E19+F22*E22+F24*E24+F29*E29+F30*E30+F35*E35+F36*E36+F38*E38+F39*E39+F41*E41+F42*E42+F46*E46+F47*E47+F49*E49+F50*E50+F52*E52+F53*E53+F56*E56+F57*E57+F59*E59","v":19963620}]
["1.1.1.4.2","Сечение провода - от 50 мм2 до 100 мм2 включительно",null,null,null,null,null,null,null,null,3,{"$f":"(H10+H11+H13+H14+H18+H19+H22+H24+H29+H30++H35+H36+H38+H39+H41+H42+H46+H47+H49+H50+H52+H53+H56+H57+H59)*0","v":0}]
[null,"до 1 кВ",653300,null,1158100,null,0]
[null,"6-10 кВ",2349200,null,2349200,null,0]
["1.1.2."," Тип провода - неизолированный"]
["1.1.2.3.","Материал провода - сталеалюминиевый"]
["1.1.2.3.1","Сечение провода - до 50 мм2 включительно"]
[null,"до 1 кВ",1008460,null,1085290,null,0]
[null,"6-10 кВ",1143120,null,1794060,null,0]
["1.1.2.4.","Материал провода - алюминиевый"]
["1.1.2.4.1","Сечение провода - до 50 мм2 включительно"]
[null,"до 1 кВ",120850,null,548840,null,0]
["1.1.2.4.2","Сечение провода - от 50мм2 до 100 мм2 включительно"]
[null,"6-10 кВ",9981810,null,9981810,2,0]
["1.2.","Материал опоры - металлические"]
["1.2.2.","Тип провода - неизолированный"]
["1.2.2.3.","Материал провода - сталеалюминиевый"]
["1.2.2.3.3","Сечение провода - от 100 до 200 мм2 включительно"]
[null,"6-10 кВ",15387090,null,15387090,null,0]
[null,"110 кВ",12418790,null,12418790,null,0]
["1.3."," Материал опоры - железобетонные"]
["1.3.1","Тип провода - изолированный"]
["1.3.1.4","Материал провода - алюминиевый"]
["1.3.1.4.1","Сечение провода - до 50 мм2 включительно"]
[null,"до 1 кВ",900740,null,238490,null,0]
[null,"6-10 кВ",1034050,null,1092730,null,0]
["1.3.1.4.2"," Сечение провода - от 50 мм2 до 100 мм2 включительно"]
[null,"до 1 кВ",899620,null,891590,null,0]
[null,"6-10 кВ",2737260,null,1855780,null,0]
["1.3.1.4.3","Сечение провода - от 100 до 200 мм2 включительно"]
[null,"до 1 кВ",1202990,null,986690,null,0]
[null,"6-10 кВ",6691820,null,1221550,null,0]
["1.3.2.","Тип провода - неизолированный"]
["1.3.2.3.","Материал провода - сталеалюминиевый"]
["1.3.2.3.1","Сечение провода - до 50 мм2 включительно"]
[null,"до 1 кВ",683100,null,822660,null,0]
[null,"6-10 кВ",722460,null,960640,null,0]
["1.3.2.3.2","Сечение провода - от 50 мм2 до 100 мм2 включительно"]
[null,"до 1 кВ",2065720,null,966690,null,0]
[null,"6-10 кВ",75853990,null,75853990,null,0]
["1.3.2.3.3","Сечение провода - от 100 до 200 мм2 включительно"]
[null,"до 1 кВ",2825250,null,2825250,null,0]
[null,"6-10 кВ",41502430,null,41502430,null,0]
["1.3.2.4.","Материал провода - алюминевый"]
["1.3.2.4.1","Сечение провода - до 50 мм2 включительно"]
[null,"до 1 кВ",946710,null,550170,null,0]
[null,"6-10 кВ",2754060,null,3750120,null,0]
["1.3.2.4.3","Сечение провода - от 100 мм2 до 200м2 включительно"]
[null,"6-10 кВ",1019590,null,1019590,null,0]

{"sheet":"Кабельные линии","index":4,"n_rows":91,"n_cols":15,"rows_kept":91,"cut":false,"hidden":true,"merged":[[35,1,35,7],[30,1,30,7],[38,1,38,7],[44,1,44,7],[45,1,45,7],[41,1,41,7],[21,1,21,7],[24,1,24,7],[27,1,27,7],[31,1,31,7],[32,1,32,7],[4,1,4,7],[5,1,5,7],[18,1,18,7],[0,0,0,7],[6,1,6,7],[7,1,7,7],[8,1,8,7],[11,1,11,7],[14,1,14,7],[17,1,17,7],[1,2,1,7],[1,1,2,1],[1,0,2,0],[48,1,48,7],[54,1,54,7],[62,1,62,7],[63,1,63,7],[64,1,64,7],[51,1,51,7],[58,1,58,7],[59,1,59,7],[60,1,60,7],[57,1,57,7],[66,1,66,7],[67,1,67,7],[68,1,68,7],[69,1,69,7],[71,1,71,7],[73,1,73,7],[76,1,76,7],[75,1,75,7],[87,1,87,7],[89,1,89,7],[77,1,77,7],[79,1,79,7],[82,1,82,7],[84,1,84,7],[85,1,85,7]]}
["Стандартизированная тарифная ставка на покрытие расходов сетевой организации на строительство кабельных линий электропередачи"]
[null,"Наименование стандартизированной тарифной ставки","Размер ставки за единицу максимальной мощности, в отношении заявителей, осуществляющих технологическое присоединение энергопринимающих устройств \nруб./кВт (без учета НДС)"]
[null,null,"\nсвыше 150 кВт, \nна территориях городских населенных пунктов ","Длина линии, км","свыше 150 кВт, \nна территориях, \nне относящихся к территориям городских населенных пунктов","Длина линии, км","\nне более 150 кВт","Длина линии, км"]
["№ п/п",1,2,3,4,5,6,7]
[2,"С3 - Стандартизированная тарифная ставка на покрытие расходов сетевой организации на строительство кабельных линий электропередачи"]
["2.1.","Способ прокладки - в траншеях"]
["2.1.1.","Одножильные"]
["2.1.1.1.","Кабели с резиновой и пластмассовой изоляцией"]
["2.1.1.1.2","Сечение провода - от 50 мм2 до 100 мм2 включительно"]
[null,"до 1 кВ",1849020,null,1849020,null,0]
[null,"6-10 кВ",2462030,null,2462030,null,0,null,null,null,null,null,1,{"$f":"D10*C10+D11*C11+D13*C13+D14*C14+D16*C16+D17*C17+D20*C20+D21*C21+D23*C23+D24*C24+D26*C26+D27*C27+D29*C29+D30*C30+D34*C34+D35*C35+D37*C37+D38*C38+D40*C40+D41*C41+D43*C43+D44*C44+D47*C47+D48*C48+D50*C50+D51*C51+D53*C53+D54*C54+D56*C56+D57*C57+D62*C62+D66*C66+D71*C71+D73*C73+D75*C75+D79*C79+D82*C82+D81*C81+D84*C84+D87*C87+D89*C89+D91*C91","v":0}]
["2.1.1.1.3","Сечение провода - от 100 до 200 мм2 включительно",null,null,null,null,null,null,null,null,null,null,2,{"$f":"F10*E10+F11*E11+F13*E13+F14*E14+F16*E16+F17*E17+F20*E20+F21*E21+F23*E23+F24*E24+F26*E26+F29*E29+F30*E30+F34*E34+F35*E35+F37*E37+F38*E38+F40*E40+F41*E41+F43*E43+F44*E44+F47*E47+F48*E48+F50*E50+F51*E51+F53*E53+F54*E54+F56*E56+F57*E57+F62*E62+F66*E66+F71*E71+F73*E73+F75*E75+F79*E79+F81*E81+F82*E82+F84*E84+F87*E87+F89*E89+F91*E91","v":1941960}]
[null,"до 1 кВ",2287100,null,2631190,null,0,null,null,null,null,null,3,{"$f":"H10*G10+H11*G11+H13*G13+H14*G14+H16*G16+H17*G17+H20*G20+H21*G21+H23*G23+H24*G24+H26*G26+H27*G27+H29*G29+H30*G30+H34*G31+H35*G35+H37*G37+H38*G38+H40*G40+H41*G41+H43*G43+H44*G44+H47+G47+H48*G48+H50*G50+H51*G51+H53*G53+H54*G54+H56*G56+H57*G57+H62*G62+H66*G66+H71*G71+H73*G73+H75*G75+H79*G79+H81*G81+H82*G82+H84*G84+H87*G87+H89*G89+H91*G91","v":0}]
[null,"6-10 кВ",3962110,null,2436410,null,0]
["2.1.1.1.4","Сечение провода - от 200 до 500 мм2 включительно",null,null,null,null,null,null,null,null,null,null,null,"Ошибка"]
[null,"до 1 кВ",2545060,null,5583700,null,0,null,null,null,null,null,null,"D","Территория подключения не соотвествует заданным параметрам. Если мощность превышает 150 кВт заполните колонку F. Если мощность менее 150 кВт заполните колонку H"]
[null,"6-10 кВ",5432050,null,11942570,null,0,null,null,null,null,null,null,"F","Территория подключения не соотвествует заданным параметрам. Если мощность превышает 150 кВт заполните колонку D. Если мощность менее 150 кВт заполните колонку H"]
["2.1.1.2.","Кабели с бумажной изоляцией",null,null,null,null,null,null,null,null,null,null,null,"H","Вводимое значение не соотвествует заданным параметрам. Если мощность превышает 150 кВт заполните колонку D или F"]
["2.1.1.2.1","Сечение провода - до 50 мм2 включительно"]
[null,"до 1 кВ",970980,null,970980,2,0]
[null,"6-10 кВ",1541800,null,1541800,null,0]
["2.1.1.2.2","Сечение провода - от 50 мм2 до 100 мм2 включительно",null,null,null,null,null,null,null,null,null,null,null,"Сообщение"]
[null,"до 1 кВ",3055880,null,3055880,null,0,null,null,null,null,null,null,"D","Вводимое значение в отношении заявителей на территории городских населенных пунктов"]
[null,"6-10 кВ",8332050,null,4288050,null,0,null,null,null,null,null,null,"F","Вводимое значение в отношении заявителей на территориях, не относящихся к территориям городских населенных пунктов"]
["2.1.1.2.3","Сечение провода - от 100 до 200 мм2 включительно",null,null,null,null,null,null,null,null,null,null,null,"H","Вводимое значение в отношении заявителей, осуществляющих технологическое присоединение энергопринимающих устройств \nне более 150 кВт"]
[null,"до 1 кВ",3900390,null,3900390,null,0]
[null,"6-10 кВ",1041960,null,3652150,null,0]
["2.1.1.2.4","Сечение провода - от 200 до 500 мм2 включительно"]
[null,"до 1 кВ",4684880,null,4684880,null,0,null,null,null,null,null,null,"D",{"$f":"AND(Калькулятор!$C$9='ставки за 1кВт'!$D$4,Калькулятор!$C$8>150)","v":false}]
[null,"6-10 кВ",3352960,null,3352960,null,0,null,null,null,null,null,null,"F",{"$f":"AND(Калькулятор!$C$9='ставки за 1кВт'!$E$4,Калькулятор!$C$8>150)","v":false}]
["2.1.2.","Многожильные",null,null,null,null,null,null,null,null,null,null,null,"H",{"$f":"AND(Калькулятор!$C$9='ставки за 1кВт'!$F$4,Калькулятор!$C$8<150)","v":false}]
["2.1.2.1.","Кабели с резиновой и пластмассовой изоляцией"]
["2.1.2.1.1","Сечение провода - до 50 мм2 включительно"]
[null,"до 1 кВ",1834720,null,1308590,null,0]
[null,"6-10 кВ",437270,null,437270,null,0]
["2.1.2.1.2","Сечение провода - от 50 мм2 до 100 мм2 включительно"]
[null,"до 1 кВ",3044040,null,2679530,null,0]
[null,"6-10 кВ",2550190,null,2550190,null,0]
["2.1.2.1.3","Сечение провода - от 100 до 200 мм2 включительно"]
[null,"до 1 кВ",3149870,null,3149870,null,0]
[null,"6-10 кВ",2175660,null,2175660,null,0]
["2.1.2.1.4","Сечение провода - от 200 до 500 мм2 включительно"]
[null,"до 1 кВ",4658420,null,4658420,null,0]
[null,"6-10 кВ",2843600,null,2843600,null,0]
["2.1.2.2.","Кабели с бумажной изоляцией"]
["2.1.2.2.1","Сечение провода - до 50 мм2 включительно"]
[null,"до 1 кВ",4103170,null,1308590,null,0]
[null,"6-10 кВ",2646710,null,2646710,null,0]
["2.1.2.2.2","Сечение провода - от 50 мм2 до 100 мм2 включительно"]
[null,"до 1 кВ",3112240,null,2026060,null,0]
[null,"6-10 кВ",2985160,null,2179170,null,0]
["2.1.2.2.3","Сечение провода - от 100 до 200 мм2 включительно"]
[null,"до 1 кВ",3076740,null,3076740,null,0]
[null,"6-10 кВ",4260460,null,922630,null,0]
["2.1.2.2.4","Сечение провода - от 200 до 500 мм2 включительно"]
[null,"до 1 кВ",4165380,null,3286650,null,0]
[null,"6-10 кВ",6441880,null,6441880,null,0]
["2.5.","Способ прокладки - в галереях и эстакадах"]
["2.5.1.","Одножильные"]
["2.5.1.1.","Кабели с резиновой и пластмассовой изоляцией"]
["2.5.1.1.4","Сечение провода - от 200м2 до 500 мм2 включительно"]
[null,"6-10 кВ",5290700,null,5290700,null,0]
["2.5.2.","Многожильные",null,null,null,null,0]
["2.5.2.1.","Кабели с резиновой и пластмассовой изоляцией",null,null,null,null,0]
["2.5.2.1.1","Сечение провода - до 50 мм2 включительно"]
[null,"до 1 кВ",268130,null,268130,null,0]
["2.6.","Способ прокладки - горизонтальное наклонное бурение"]
["2.6.1.","Одножильные"]
["2.6.1.1.","Кабели с резиновой и пластмассовой изоляцией"]
["2.6.1.1.2","Сечение провода - от 50 мм2 до 100 мм2 включительно"]
[null,"6-10 кВ",718840,null,718840,null,0]
["2.6.1.1.3","Сечение провода - от 100 до 200 мм2 включительно"]
[null,"6-10 кВ",3158800,null,3158800,null,0]
["2.6.1.1.4","Сечение провода - от 200 до 500 мм2 включительно"]
[null,"6-10 кВ",478850,null,478850,null,0]
["2.6.2.","Многожильные"]
["2.6.2.1.","Кабели с резиновой и пластмассовой изоляцией"]
["2.6.2.1.2","Сечение провода - от 50 мм2 до 100 мм2 включительно"]
[null,"до 1 кВ",4532490,null,4532490,null,0]
["2.6.2.1.3","Сечение провода - от 100 до 200 мм2 включительно"]
[null,"до 1 кВ",5050540,null,5050540,null,0]
[null,"6-10 кВ",14558780,null,14558780,null,0]
["2.6.2.1.4","Сечение провода - от 200 до 500 мм2 включительно"]
[null,"до 1 кВ",2793960,null,2793960,null,0]
["2.6.2.2.","Кабели с бумажной изоляцией"]
["2.6.2.2.2","Сечение провода - от 50 мм2 до 100 мм2 включительно"]
[null,"6-10 кВ",1236100,null,1236100,null,0]
["2.6.2.2.3","Сечение провода - от 100 до 200 мм2 включительно"]
[null,"6-10 кВ",6209850,null,6209850,null,0]
["2.6.2.2.4","Сечение провода - от 200 до 500 мм2 включительно"]
[null,"6-10 кВ",2067000,null,2067000,null,0]

{"sheet":"Пункты секционирования","index":5,"n_rows":23,"n_cols":15,"rows_kept":23,"cut":false,"hidden":true,"merged":[[13,1,13,7],[14,1,14,7],[16,1,16,7],[18,1,18,7],[19,1,19,7],[6,1,6,7],[0,0,0,7],[7,1,7,7],[8,1,8,7],[10,1,10,7]]}
["Стандартизированная тарифная ставка на покрытие расходов сетевой организации на строительство пунктов секционирования (реклоузеров, распределительных пунктов, переключательных пунктов)"]
[]
[]
[]
[null,"Наименование стандартизированной тарифной ставки","Размер ставки в отношении заявителей, осуществляющих технологическое присоединение энергопринимающих устройств \nсвыше 150 кВт \n(на территориях городских населенных пунктов), руб./шт","наличие","Размер ставки в отношении заявителей, осуществляющих технологическое присоединение энергопринимающих устройств \nсвыше 150 кВт\n (на территориях, не относящихся к территориям городских населенных пунктов), руб./шт","наличие","Размер ставки в отношении заявителей, осуществляющих технологическое присоединение энергопринимающих устройств \nне более 150 кВт, руб./шт","наличие"]
["№ п/п",1,2,3,4,5,6,7]
[3,"С4 - Стандартизированная тарифная ставка на покрытие расходов сетевой организации на строительство пунктов секционирования (реклоузеров, распределительных пунктов, переключательных пунктов)"]
["3.1","Реклоузер"]
["3.1.3","Номинальный ток - от 250 А до 500 А включительно"]
[null,"6 -10 кВ",116110,null,116110,null,0,null,null,null,null,null,{"$f":"IF(D10=\"да\",C10,0)","v":0},{"$f":"IF(F10=\"да\",E10,0)","v":0},{"$f":"IF(H10=\"да\",G10,0)","v":0}]
["3.1.4","Номинальный ток - от 500 А до 1000 А включительно"]
[null,"6 -10 кВ",595180,null,595180,null,0,null,null,null,null,null,{"$f":"IF(D12=\"да\",C12,0)","v":0},{"$f":"IF(F12=\"да\",E12,0)","v":0},{"$f":"IF(H12=\"да\",G12,0)","v":0}]
[null,"35 кВ",462700,null,462700,null,0,null,null,null,null,null,{"$f":"IF(D13=\"да\",C13,0)","v":0},{"$f":"IF(F13=\"да\",E13,0)","v":0},{"$f":"IF(H13=\"да\",G13,0)","v":0}]
["3.2","Распределительные пункты (РП)"]
["3.2.2","Номинальный ток - от 100 А до 250 А включительно"]
[null,"6 -10 кВ",944540,null,944540,null,0,null,null,null,null,null,{"$f":"IF(D16=\"да\",C16,0)","v":0},{"$f":"IF(F16=\"да\",E16,0)","v":0},{"$f":"IF(H16=\"да\",G16,0)","v":0}]
["3.2.4","Номинальный ток - от 500 А до 1000 А включительно"]
[null,"6 -10 кВ",5861980,null,5861980,null,0,null,null,null,null,null,{"$f":"IF(D18=\"да\",C18,0)","v":0},{"$f":"IF(F18=\"да\",E18,0)","v":0},{"$f":"IF(H18=\"да\",G18,0)","v":0}]
["3.4","Разъединители"]
["3.4.3","Номинальный ток - от 250 А до 500 А включительно"]
[null,"6 -10 кВ",26080,"Да",26080,null,0,null,null,null,null,null,{"$f":"IF(D21=\"да\",C21,0)","v":26080},{"$f":"IF(F21=\"да\",E21,0)","v":0},{"$f":"IF(H21=\"да\",G21,0)","v":0}]
[]
[null,null,null,null,null,null,null,null,null,null,null,null,{"$f":"SUM(M10:M21)","v":26080},{"$f":"SUM(N10:N21)","v":0},0]

{"sheet":"Трансформаторные подстанции","index":6,"n_rows":22,"n_cols":14,"rows_kept":22,"cut":false,"hidden":true,"merged":[[18,1,18,7],[4,1,4,7],[0,0,0,7],[5,1,5,7],[12,1,12,7],[17,1,17,7]]}
["Стандартизированная тарифная ставка на покрытие расходов сетевой организации на строительство трансформаторных подстанций подстанций (ТП), за исключением распределительных трансформаторных подстанций (РТП), с уровнем напряжения до 35 кВ"]
[]
[null,"Наименование стандартизированной тарифной ставки","Размер ставки в отношении заявителей, осуществляющих технологическое присоединение энергопринимающих устройств \nсвыше 150 кВт \n(на территориях городских населенных пунктов), руб./кВт","наличие","Размер ставки в отношении заявителей, осуществляющих технологическое присоединение энергопринимающих устройств \nсвыше 150 кВт\n (на территориях, не относящихся к территориям городских населенных пунктов), руб./кВт","наличие","Размер ставки в отношении заявителей, осуществляющих технологическое присоединение энергопринимающих устройств \nне более 150 кВт, руб./кВт","наличие"]
["№ п/п",1,2,3,4,5,6,7]
["4.1.","С5 - Трансформаторные подстанции (ТП), за исключением распределительных трансформаторных подстанций (РТП)"]
["4.1.1.","Однотрансформаторные"]
["4.1.1.1","Трансформаторная мощность - до 25 кВА включительно",13790,null,19090,null,0,null,null,null,null,{"$f":"IF(D7=\"да\",C7,0)","v":0},{"$f":"IF(F7=\"да\",E7,0)","v":0},{"$f":"IF(H7=\"да\",G7,0)","v":0}]
["4.1.1.2","Трансформаторная мощность - от 25 кВА до 100 кВА включительно",9800,null,10770,null,0,null,null,null,null,{"$f":"IF(D8=\"да\",C8,0)","v":0},{"$f":"IF(F8=\"да\",E8,0)","v":0},{"$f":"IF(H8=\"да\",G8,0)","v":0}]
["4.1.1.3","Трансформаторная мощность - от 100 кВА до 250 кВА включительно",5890,"Да",3980,null,0,null,null,null,null,5890,0,0]
["4.1.1.4","Трансформаторная мощность - от 250 кВА до 500 кВА включительно",4230,null,9390,null,0,null,null,null,null,0,0,0]
["4.1.1.5","Трансформаторная мощность - от 500 кВА до 900 кВА включительно",25730,null,2970,null,0,null,null,null,null,0,0,0]
["4.1.1.6","Трансформаторная мощность - свыше 1000 кВА ",1490,null,1490,null,0,null,null,null,null,0,0,0]
["4.1.2.","Двухтрансформаторные и более "]
["4.1.2.3","Трансформаторная мощность - от 100 кВА до 250 кВА включительно",24980,null,24980,null,0,null,null,null,null,0,0,0]
["4.1.2.4","Трансформаторная мощность - от 250 кВА до 500 кВА включительно",27470,null,27470,null,0,null,null,null,null,0,0,0]
["4.1.2.5","Трансформаторная мощность - от 500 кВА до 900 кВА включительно",13770,null,4760,null,0,null,null,null,null,0,0,0]
["4.1.2.6","Трансформаторная мощность - свыше 1000 кВА",6750,null,6750,null,0,null,null,null,null,0,0,0]
[null,"С5 - Стандартизированная тарифная ставка на покрытие расходов сетевой организации на строительство трансформаторных подстанций (ТП) 35/0,4, за исключением распределительных трансформаторых подстанций (РТП)",null,null,null,null,null,null,null,null,null,0,0,{"$f":"IF(H18=\"да\",G18,0)","v":0}]
["4*.1.","Однотрансформаторные"]
["4*.1.6.","Трансформаторная мощность - свыше 1000 кВА",611140,null,611140,null,0,null,null,null,null,0,0,0]
[]
[null,null,null,null,null,null,null,null,null,null,null,{"$f":"SUM(L7:L20)","v":5890},{"$f":"SUM(M7:M20)","v":0},{"$f":"SUM(N7:N20)","v":0}]

{"sheet":"РТП","index":7,"n_rows":10,"n_cols":13,"rows_kept":10,"cut":false,"hidden":true,"merged":[[0,0,0,7],[4,1,4,7],[5,1,5,7],[7,1,7,7]]}
["Стандартизированная тарифная ставка на покрытие расходов сетевой организации на строительство распределительных трансформаторных подстанций (РТП) с уровнем напряжения до 35 кВ"]
[]
[null,"Наименование стандартизированной тарифной ставки","Размер ставки в отношении заявителей, осуществляющих технологическое присоединение энергопринимающих устройств \nсвыше 150 кВт \n(на территориях городских населенных пунктов), руб./кВт","наличие","Размер ставки в отношении заявителей, осуществляющих технологическое присоединение энергопринимающих устройств \nсвыше 150 кВт\n (на территориях, не относящихся к территориям городских населенных пунктов), руб./кВт","наличие","Размер ставки в отношении заявителей, осуществляющих технологическое присоединение энергопринимающих устройств \nне более 150 кВт, руб./кВт","наличие"]
["№ п/п",1,2,3,4,5,6,7]
["5.1.","С6 - Распределительные трансформаторные подстанции (РТП)"]
["5.1.1.","Однотрансформаторные"]
["5.1.1.2","Трансформаторная мощность - от 25 кВА до 100 кВА включительно",61250,"Да",61250,null,0,null,null,null,{"$f":"IF(D7=\"да\",C7,0)","v":61250},{"$f":"IF(F7=\"да\",E7,0)","v":0},{"$f":"IF(H7=\"да\",G7,0)","v":0}]
["5.1.2.","Двухтрансформаторные и более"]
["5.1.2.6","Трансформаторная мощность - свыше 1000 кВА ",8130,null,8130,null,0,null,null,null,{"$f":"IF(D9=\"да\",C9,0)","v":0},{"$f":"IF(F9=\"да\",E9,0)","v":0},{"$f":"IF(H9=\"да\",G9,0)","v":0}]
[null,null,null,null,null,null,null,null,null,null,{"$f":"SUM(K7:K9)","v":61250},{"$f":"SUM(L7:L9)","v":0},0]

{"sheet":"Источники питания","index":8,"n_rows":8,"n_cols":8,"rows_kept":8,"cut":false,"hidden":true,"merged":[[0,0,0,7],[6,1,6,7]]}
["Стандартизированная тарифная ставка на покрытие расходов сетевой организации на строительство подстанций уровнем напряжения 35 кВ и выше (ПС)"]
[]
[]
[]
[null,"Наименование стандартизированной тарифной ставки","Размер ставки в отношении заявителей, осуществляющих технологическое присоединение энергопринимающих устройств \nсвыше 150 кВт \n(на территориях городских населенных пунктов), руб./кВт","наличие","Размер ставки в отношении заявителей, осуществляющих технологическое присоединение энергопринимающих устройств \nсвыше 150 кВт\n (на территориях, не относящихся к территориям городских населенных пунктов), руб./кВт","наличие","Размер ставки в отношении заявителей, осуществляющих технологическое присоединение энергопринимающих устройств \nне более 150 кВт, руб./кВт","наличие"]
["№ п/п",1,2,3,4,5,6,7]
["6.","С7 - Подстанции уровнем напряжения 35 кВ и выше (ПС)"]
["6.2.","Подстанции 110 кВ и выше",11320,"Да",11450,null,0]

{"sheet":"С1_1кВт","index":9,"n_rows":8,"n_cols":5,"rows_kept":8,"cut":false,"hidden":true,"merged":[[0,0,0,4],[2,1,2,2],[5,1,5,2]]}
["Ставка за единицу максимальной мощности для определения платы \nза технологическое присоединение к электрическим сетям на уровне напряжения ниже 35 кВ и мощности менее 8 900 кВт на осуществление мероприятий, предусмотренных пунктом 16 (за исключением подпункта «б») Методических указаний \n(на территориях городских населенных пунктов и на территориях, \nне относящихся к территориям городских населенных пунктов)"]
[]
["№ п.п.","Наименование стандартизированной тарифной ставки",null,"Единица измерения","Значение (без учета НДС)"]
[1,2,3,4,5]
[1,"С1maxN","Ставка за единицу максимальной мощности для определения платы за технологическое присоединение к электрическим сетям на уровне напряжения ниже 35 кВ и мощности менее 8 900 кВт на осуществление \nмероприятий, предусмотренных пунктом 16 (за исключением подпункта «б») Методических указаний,","руб./кВт",251.36]
[null,"в том числе:"]
["1.1.",null,"Подготовка и выдача сетевой организацией технических условий Заявителю","руб./кВт",119.34]
["1.2.",null,"Проверка сетевой организацией выполнения Заявителем технических условий (включая процедуры, предусмотренные подпунктами «г» - «е» пункта 7 Правил технологического присоединения)","руб./кВт",132.02000000000001]

{"sheet":"ставки за 1кВт","index":10,"n_rows":43,"n_cols":6,"rows_kept":43,"cut":false,"hidden":true,"merged":[[40,2,40,5],[35,2,35,5],[36,2,36,5],[10,2,10,5],[13,2,13,5],[21,2,21,5],[23,2,23,5],[22,2,22,5],[0,0,0,5],[2,3,2,5],[2,2,3,2],[2,0,3,0],[5,2,5,5]]}
["Ставки за единицу максимальной мощности \nна уровне напряжения ниже 35 кВ и максимальной мощности менее 8900 кВт на покрытие расходов по строительству объектов электросетевого хозяйства от существующих объектов электросетевого хозяйства до присоединяемых энергопринимающих устройств потребителей электрической энергии, объектов электросетевого хозяйства, принадлежащих сетевым организациям и иным лицам («последняя миля»), за технологическое присоединение к электрическим сетям территориальных сетевых организаций Челябинской области, на 2018 год\n(на территориях городских населенных пунктов и на территориях, \nне относящихся к территориям городских населенных пунктов)"]
[]
["№ п.п",null,"Наименование  тарифной ставки","Размер ставки за единицу максимальной мощности, в отношении заявителей, осуществляющих технологическое присоединение энергопринимающих устройств \nруб./кВт (без учета НДС)"]
[null,null,null,"\nсвыше 150 кВт, \nна территориях городских населенных пунктов ","\nсвыше 150 кВт, \nна территориях, \nне относящихся к территориям городских населенных пунктов","\nне более 150 кВт включительно"]
[1,null,2,3,4,5]
[1,null,"Ставка за единицу максимальной мощности на осуществление мероприятий по строительству воздушных линий"]
["1.1.",null,"до 1 кВ",5157.8599999999997,6119.91,0]
["1.2.",null,"6-10 кВ",27102.9,6952.35]
["1.3.",null,"35 кВ",1092.3,1092.3,0]
["1.4.",null,"110 кВ",271.64999999999998,271.64999999999998,0]
[2,null,"Ставка за единицу максимальной мощности на осуществление мероприятий по строительству кабельных линий"]
[null,null,"до 1 кВ",613.38,3911.57,0]
[null,null,"6-10 кВ",2372.39,3898.35,0]
["3.",null,"Ставка за единицу максимальной мощности на строительство пунктов секционирования (реклоузеров, распределительных пунктов, переключательных пунктов)"]
[]
[null,null,"Реклоузер (Номинальный ток - от 250 А до 500 А включительно) 6-10 кВ",762.15,762.15,0]
[null,null,"Реклоузер (Номинальный ток - от 500 А до 1000 А включительно) 6-10 кВ",2027.86,2027.86,0]
[null,null,"Реклоузер (Номинальный ток - от 500 А до 1000 А включительно) 35 кВ",30846.639999999999,30846.639999999999,0]
[null,null,"Распределительные пункты (Номинальный ток - от 100 А до 250 А включительно) 6-10 кВ",2361.35,2361.35,0]
[null,null,"Распределительные пункты  (Номинальный ток - от 500 А до 1000 А включительно) 6-10 кВ",2131.63,2131.63,0]
[null,null,"Разъединители (Номинальный ток - от 250 А до 500 А включительно) 6-10 кВ",654.73,654.73,0]
["4.",null,"Ставки за единицу максимальной мощности на осуществление мероприятий по строительству трансформаторных подстанций (ТП), за исключением распределительных трансформаторных подстанций (РТП)"]
["4.1.",null,"Трансформаторные подстанции (ТП), за исключением распределительных трансформаторных подстанций (РТП)"]
["4.1.1.",null,"Однотрансформаторные"]
[]
["4.1.1.1.",null,"Однотрансформаторные Трансформаторная мощность - до 25 кВА включительно",13790.54,19090,0]
["4.1.1.2.",null,"Однотрансформаторные Трансформаторная мощность - от 25 кВА до 100 кВА включительно",9801.49,10770,0]
["4.1.1.3.",null,"Однотрансформаторные Трансформаторная мощность - от 100 кВА до 250 кВА включительно",5894.48,3980,0]
["4.1.1.4.",null,"Однотрансформаторные Трансформаторная мощность - от 250 кВА до 500 кВА включительно",4230.3900000000003,9390,0]
["4.1.1.5.",null,"Однотрансформаторные Трансформаторная мощность - от 500 кВА до 900 кВА включительно",25728.69,2970,0]
["4.1.1.6.",null,"Однотрансформаторные Трансформаторная мощность - свыше 1000 кВА ",1490,1490,0]
["4.1.2.3.",null,"Двухтрансформаторные и более Трансформаторная мощность - от 100 кВА до 250 кВА включительно",24984.1,24984.1,0]
["4.1.2.4.",null,"Двухтрансформаторные и более Трансформаторная мощность - от 250 кВА до 500 кВА включительно",27473.41,27473.41,0]
["4.1.2.5.",null,"Двухтрансформаторные и более Трансформаторная мощность - от 500 кВА до 900 кВА включительно",13771.39,4760,0]
["4.1.2.6.",null,"Двухтрансформаторные и более Трансформаторная мощность - свыше 1000 кВА",6751.11,6751.11,0]
["5.",null,"Ставки за единицу максимальной мощности на осуществление мероприятий по строительству распределительных трансформаторных подстанций (РТП) с уровнем напряжения до 35 кВ"]
["5.1.",null,"Распределительные трансформаторные подстанции (РТП)"]
[]
["5.1.1.2.",null,"Однотрансформаторные nрансформаторная мощность - от 25 кВА до 100 кВА включительно",61250,61250,0]
["5.1.2.6.",null,"Двухтрансформаторные и более nрансформаторная мощность - свыше 1000 кВА",8128.3,8128.3,0]
["6.",null,"Ставки за единицу максимальной мощности на осуществление мероприятий \nпо строительству подстанций уровнем напряжения 35 кВ и выше (ПС)"]
[]
["6.2.",null,"Подстанции 110 кВ и выше",11324.67,11450,0]

{"sheet":"Расчет2","index":11,"n_rows":53,"n_cols":4,"rows_kept":53,"cut":false,"hidden":true,"merged":[[1,1,1,2],[19,1,19,2],[21,1,21,2],[37,1,37,2],[22,3,24,3],[23,1,23,2],[35,1,35,2],[38,1,38,2],[52,1,52,2]]}
[]
[null,"Расчет платы за технологическое присоединение к электрическим сетям"]
[]
[null,"Наименование сетевой организации:",{"$f":"Калькулятор!C5","v":0}]
[]
[null,"Уровень напряжения, кВ:",{"$f":"Калькулятор!C7","v":0}]
[]
[null,"Максимальная мощность, кВт:",{"$f":"Калькулятор!C8","v":0}]
[]
[null,"Наличие мероприятий по строительству «последней мили» со стороны сетевой организации"]
[null,{"$f":"Калькулятор!B12","v":"Строительство воздушных линий"},{"$f":"Калькулятор!C12","v":0}]
[null,{"$f":"Калькулятор!B13","v":"Строительство кабельных линий"},{"$f":"Калькулятор!C13","v":0}]
[null,{"$f":"Калькулятор!B14","v":"Строительство трансформаторных подстанций"},{"$f":"Калькулятор!C14","v":0}]
[null,{"$f":"Калькулятор!B15","v":"Строительство пунктов секционирования"},{"$f":"Калькулятор!C15","v":0}]
[null,{"$f":"Калькулятор!B16","v":"Строительство подстанций уровнем напряжения 35кВ и выше (ПС)"},{"$f":"Калькулятор!C16","v":0}]
[null,"Строительство распределительных трансформаторных подстанций ",{"$f":"Калькулятор!C17","v":0}]
[]
[]
[]
[]
[]
[null,"Плата по стандартизированным тарифным ставкам:",null,"Примечания"]
[]
[null,"Ттп = С1 + С2 х LI + С3 х LI + С4 х k + С5 х NI + С6 х NI + С7 х NI"]
[]
[null,"С1, рублей/за одно присоединение",{"$f":"С1_СТС!E5","v":11644.28},"Единая для всех ТСО"]
[null,"Плата за организационные мероприятия, руб. (без НДС)",{"$f":"C26","v":11644.28},"(в текущих ценах)"]
[null,"Плата за строительство воздушных линий, руб.  C2",{"$f":"IF(C11=\"да\",IF(Калькулятор!C9='ставки за 1кВт'!D4,'Воздушные линии'!L10,IF(Калькулятор!C9='ставки за 1кВт'!E4,'Воздушные линии'!L11,IF(Калькулятор!C9='ставки за 1кВт'!F4,'Воздушные линии'!L12,0))),0)","v":0},"(в текущих ценах)"]
[null,"Плата за строительство кабельных линий, руб. C3",{"$f":"IF(C12=\"да\",IF(Калькулятор!C9='ставки за 1кВт'!D4,'Кабельные линии'!N11,IF(Калькулятор!C9='ставки за 1кВт'!E4,'Кабельные линии'!N12,IF(Калькулятор!C9='ставки за 1кВт'!F4,'Кабельные линии'!N13,0))),0)","v":0},"(в текущих ценах)"]
[null,"Плата за строительство трансформаторных подстанций, руб. C5",{"$f":"IF(C13=\"да\",(IF(Калькулятор!C9='ставки за 1кВт'!D4,'Трансформаторные подстанции'!L22,IF(Калькулятор!C9='ставки за 1кВт'!E4,'Трансформаторные подстанции'!M22,IF(Калькулятор!C9='ставки за 1кВт'!F4,'Трансформаторные подстанции'!N22,0))))*Калькулятор!C8,0)","v":0},"(в текущих ценах)"]
[null,"Плата за строительство пунктов секционирования, руб.    С4",{"$f":"IF(C14=\"да\",(IF(Калькулятор!C9='ставки за 1кВт'!D4,'Пункты секционирования'!M23,IF(Калькулятор!C9='ставки за 1кВт'!E4,'Пункты секционирования'!N23,IF(Калькулятор!C9='ставки за 1кВт'!F4,'Пункты секционирования'!O23,0)))),0)","v":0},"(в текущих ценах)"]
[null,"Плата за строительство источников питания, руб. С7",{"$f":"IF(C15=\"да\",IF(Калькулятор!C10=\"да\",(IF(Калькулятор!C9='ставки за 1кВт'!D4,'ставки за 1кВт'!D43,IF(Калькулятор!C9='ставки за 1кВт'!E4,'ставки за 1кВт'!E43,IF(Калькулятор!C9='ставки за 1кВт'!F4,'ставки за 1кВт'!F43,0))))*Калькулятор!C8,0),0)","v":0},"(в текущих ценах)"]
[null,"Плата за строительство распределительных трансформаторных подстанций, руб.  С6",{"$f":"IF(C16=\"да\",(IF(Калькулятор!C9='ставки за 1кВт'!D4,РТП!K10,IF(Калькулятор!C9='ставки за 1кВт'!E4,РТП!L10,IF(Калькулятор!C9='ставки за 1кВт'!F4,РТП!M10,0))))*Калькулятор!C8,0)","v":0},"(в текущих ценах)"]
[null,"Плата по стандартизированным тарифным ставкам, руб. (без НДС)",{"$f":"SUM(C27:C33)","v":11644.28},"(в текущих ценах)"]
[]
[null,"Плата по ставкам за единицу максимальной мощности:",null,"Примечания"]
[]
[null,"Tтп = (С1maxN x N) + (           x N) + (            x N) + (             x N) + (             x N) + (            x N) + (             x N)      "]
[]
[null,"С1, руб./кВт",{"$f":"С1_1кВт!E5","v":251.36},"Единая для всех ТСО"]
[null,"Плата за организационные мероприятия, руб. (без НДС)",{"$f":"C40*Калькулятор!C8","v":0},"(в текущих ценах)"]
[null,"Плата за строительство воздушных линий, руб. C2",{"$f":"IF(Калькулятор!C10=\"Да\",(IF(Калькулятор!C9='ставки за 1кВт'!D4,IF(Калькулятор!C19='ставки за 1кВт'!C7,'ставки за 1кВт'!D7,IF(Калькулятор!C19='ставки за 1кВт'!C8,'ставки за 1кВт'!D8,IF(Калькулятор!C19='ставки за 1кВт'!C9,'ставки за 1кВт'!D9,IF(Калькулятор!C19='ставки за 1кВт'!C10,'ставки за 1кВт'!D10,0)))),IF(Калькулятор!C9='ставки за 1кВт'!E4,IF(Калькулятор!C19='ставки за 1кВт'!C7,'ставки за 1кВт'!E7,IF(Калькулятор!C19='ставки за 1кВт'!C8,'ставки за 1кВт'!E8,IF(Калькулятор!C19='ставки за 1кВт'!C9,'ставки за 1кВт'!E9,IF(Калькулятор!C19='ставки за 1кВт'!C10,'ставки за 1кВт'!D10,IF(Калькулятор!C9='ставки за 1кВт'!E4,0))))),0)))*Калькулятор!C8,0)","v":0},"(в текущих ценах)"]
[null,"Плата за строительство кабельных линий, руб. C3",{"$f":"IF(Калькулятор!C10=\"да\",\n(IF(Калькулятор!C9='ставки за 1кВт'!D4,\nIF(Калькулятор!C20='ставки за 1кВт'!C12,'ставки за 1кВт'!D12,\nIF(Калькулятор!C20='ставки за 1кВт'!C13,'ставки за 1кВт'!D13,0)),\nIF(Калькулятор!C9='ставки за 1кВт'!E4,\nIF(Калькулятор!C20='ставки за 1кВт'!C12,'ставки за 1кВт'!E12,\nIF(Калькулятор!C20='ставки за 1кВт'!C13,'ставки за 1кВт'!E13,0)),0)))*Калькулятор!C8,0)","v":0},"(в текущих ценах)"]
[null,"Плата за строительство трансформаторных подстанций, руб.  C5",{"$f":"IF(Калькулятор!C10=\"да\",(IF(Калькулятор!C9='ставки за 1кВт'!D4,IF(Калькулятор!C21='ставки за 1кВт'!C26,'ставки за 1кВт'!D26,IF(Калькулятор!C21='ставки за 1кВт'!C27,'ставки за 1кВт'!D27,IF(Калькулятор!C21='ставки за 1кВт'!C28,'ставки за 1кВт'!D28,IF(Калькулятор!C21='ставки за 1кВт'!C29,'ставки за 1кВт'!D29,IF(Калькулятор!C21='ставки за 1кВт'!C30,'ставки за 1кВт'!D30,IF(Калькулятор!C21='ставки за 1кВт'!C31,'ставки за 1кВт'!D31,IF(Калькулятор!C21='ставки за 1кВт'!C32,'ставки за 1кВт'!D32,IF(Калькулятор!C21='ставки за 1кВт'!C33,'ставки за 1кВт'!D33,IF(Калькулятор!C21='ставки за 1кВт'!C34,'ставки за 1кВт'!D34,IF(Калькулятор!C21='ставки за 1кВт'!C35,'ставки за 1кВт'!D35,0)))))))))),IF(Калькулятор!C9='ставки за 1кВт'!E4,IF(Калькулятор!C21='ставки за 1кВт'!C26,'ставки за 1кВт'!E26,IF(Калькулятор!C21='ставки за 1кВт'!C27,'ставки за 1кВт'!E27,IF(Калькулятор!C21='ставки за 1кВт'!C28,'ставки за 1кВт'!E28,IF(Калькулятор!C21='ставки за 1кВт'!C29,'ставки за 1кВт'!E29,IF(Калькулятор!C21='ставки за 1кВт'!C30,'ставки за 1кВт'!E30,IF(Калькулятор!C21='ставки за 1кВт'!C31,'ставки за 1кВт'!E31,IF(Калькулятор!C21='ставки за 1кВт'!C32,'ставки за 1кВт'!E32,IF(Калькулятор!C21='ставки за 1кВт'!C33,'ставки за 1кВт'!E33,IF(Калькулятор!C21='ставки за 1кВт'!C34,'ставки за 1кВт'!E34,IF(Калькулятор!C21='ставки за 1кВт'!C35,'ставки за 1кВт'!E35,0)))))))))),0)))*Калькулятор!C8,0)","v":0},"(в текущих ценах)"]
[null,"Плата за строительство пунктов секционирования, руб.   C4",{"$f":"IF(Калькулятор!C10=\"да\",(IF(Калькулятор!C9='ставки за 1кВт'!D4,IF(Калькулятор!C24='ставки за 1кВт'!C16,'ставки за 1кВт'!D16,IF(Калькулятор!C24='ставки за 1кВт'!C17,'ставки за 1кВт'!D17,IF(Калькулятор!C24='ставки за 1кВт'!C18,'ставки за 1кВт'!D18,IF(Калькулятор!C24='ставки за 1кВт'!C19,'ставки за 1кВт'!D19,IF(Калькулятор!C24='ставки за 1кВт'!C20,'ставки за 1кВт'!D20,IF(Калькулятор!C24='ставки за 1кВт'!C21,'ставки за 1кВт'!D21,0)))))),IF(Калькулятор!C9='ставки за 1кВт'!E4,IF(Калькулятор!C24='ставки за 1кВт'!C16,'ставки за 1кВт'!E16,IF(Калькулятор!C24='ставки за 1кВт'!C17,'ставки за 1кВт'!E17,IF(Калькулятор!C24='ставки за 1кВт'!C18,'ставки за 1кВт'!E18,IF(Калькулятор!C24='ставки за 1кВт'!C19,'ставки за 1кВт'!E19,IF(Калькулятор!C24='ставки за 1кВт'!C20,'ставки за 1кВт'!E20,IF(Калькулятор!C24='ставки за 1кВт'!C21,'ставки за 1кВт'!E21,0)))))),0)))*Калькулятор!C8,0)","v":0},"(в текущих ценах)"]
[null,"Плата за строительство источников питания, руб. C7",{"$f":"IF(Калькулятор!C10=\"да\",(IF(Калькулятор!C9='ставки за 1кВт'!D4,IF(Калькулятор!C23=\"да\",'ставки за 1кВт'!D43,0),IF(Калькулятор!C9='ставки за 1кВт'!E4,IF(Калькулятор!C23=\"нет\",'ставки за 1кВт'!E43,0),0)))*Калькулятор!C8,0)","v":0},"(в текущих ценах)"]
[null,"Плата за строительство распределительных трансформаторных подстанций, руб.  С6",{"$f":"IF(Калькулятор!C10=\"да\",(IF(Калькулятор!C9='ставки за 1кВт'!D4,IF(Калькулятор!C22='ставки за 1кВт'!C39,'ставки за 1кВт'!D39,IF(Калькулятор!C22='ставки за 1кВт'!C40,'ставки за 1кВт'!D40,0)),IF(Калькулятор!C9='ставки за 1кВт'!E4,IF(Калькулятор!C22='ставки за 1кВт'!C39,'ставки за 1кВт'!E39,IF(Калькулятор!C22='ставки за 1кВт'!C40,'ставки за 1кВт'!E40,0)),0)))*Калькулятор!C8,0)","v":0},"(в текущих ценах)"]
[null,"Плата по ставкам за единицу максимальной мощности, руб. (без НДС)",{"$f":"C41+C42+C43+C45+C46+C47+C44","v":0},"(в текущих ценах)"]
[]
[]
[]
[]
[null,"Внимание! Данные расчеты носят справочный характер и не могут являться окончательными для оплаты стоимости технологического присоединения. \nКалькулятор расчета платы за технологическое присоединение к электрическим сетям предназначен для примерного расчета стоимости размера платы за технологическое присоединение к электрическим сетям территориальных сетевых организаций Челябинской области."]